[Event "Titled Tuesday Blitz December 27 Early 2022"]
[White "De Souza, Cristiano Gomes"]
[Black "Feng, Eric"]
[WhiteFideId "2151758"]
[BlackFideId "30952590"]
[WhiteElo "2018"]
[BlackElo "1951"]
[Result "0-1"]
[Round "02"]
[TimeControl "180+2"]
[Date "2022.12.27"]
[WhiteClock "0:00:16"]
[BlackClock "0:00:20"]

1. d4 {[%clk 0:02:58]}  Nf6 {[%clk 0:02:59]} 2. c4 {[%clk 0:02:59]}  e6 {[%clk 0:02:59]} 3. Nf3 {[%clk 0:02:59]}  d5 {[%clk 0:02:59]} 4. Nc3 {[%clk 0:02:59]}  Be7 {[%clk 0:02:59]} 5. Bg5 {[%clk 0:02:59]}  O-O {[%clk 0:03:00]} 6. e3 {[%clk 0:02:58]}  h6 {[%clk 0:03:00]} 7. Bh4 {[%clk 0:02:58]}  c6 {[%clk 0:03:00]} 8. Rc1 {[%clk 0:02:58]}  Nbd7 {[%clk 0:03:01]} 9. Be2 {[%clk 0:02:57]}  b6 {[%clk 0:03:01]} 10. O-O {[%clk 0:02:57]}  Bb7 {[%clk 0:03:01]} 11. Bg3 {[%clk 0:02:57]}  Rc8 {[%clk 0:03:01]} 12. Ne5 {[%clk 0:02:56]}  Ne4 {[%clk 0:02:58]} 13. Nxe4 {[%clk 0:02:54]}  dxe4 {[%clk 0:02:58]} 14. Nxd7 {[%clk 0:02:55]}  Qxd7 {[%clk 0:02:59]} 15. Qc2 {[%clk 0:02:51]}  f5 {[%clk 0:02:58]} 16. Be5 {[%clk 0:02:51]}  Bd6 {[%clk 0:02:54]} 17. Bxd6 {[%clk 0:02:51]}  Qxd6 {[%clk 0:02:55]} 18. c5 {[%clk 0:02:48]}  Qe7 {[%clk 0:02:51]} 19. cxb6 {[%clk 0:02:48]}  axb6 {[%clk 0:02:52]} 20. Qb3 {[%clk 0:02:47]}  b5 {[%clk 0:02:32]} 21. Rc5 {[%clk 0:02:44]}  f4 {[%clk 0:02:25]} 22. Bg4 {[%clk 0:02:39]}  Rf6 {[%clk 0:02:19]} 23. exf4 {[%clk 0:02:31]}  Rd8 {[%clk 0:02:18]} 24. Qe3 {[%clk 0:02:22]}  Rd5 {[%clk 0:01:40]} 25. Rfc1 {[%clk 0:02:14]}  Qd6 {[%clk 0:01:30]} 26. Rxd5 {[%clk 0:02:00]}  exd5 {[%clk 0:01:30]} 27. g3 {[%clk 0:01:57]}  Rf8 {[%clk 0:01:26]} 28. Rc5 {[%clk 0:01:53]}  Qf6 {[%clk 0:01:26]} 29. a3 {[%clk 0:01:50]}  Ra8 {[%clk 0:01:26]} 30. Bd1 {[%clk 0:01:46]}  Bc8 {[%clk 0:01:19]} 31. Qc3 {[%clk 0:01:44]}  Bd7 {[%clk 0:01:18]} 32. f3 {[%clk 0:01:36]}  exf3 {[%clk 0:01:16]} 33. Bxf3 {[%clk 0:01:37]}  Re8 {[%clk 0:01:15]} 34. Kf2 {[%clk 0:01:35]}  g5 {[%clk 0:01:13]} 35. fxg5 {[%clk 0:01:35]}  hxg5 {[%clk 0:01:14]} 36. Kg1 {[%clk 0:01:19]}  g4 {[%clk 0:01:04]} 37. Bg2 {[%clk 0:01:19]}  Qg5 {[%clk 0:01:01]} 38. Qc1 {[%clk 0:01:13]}  Qf6 {[%clk 0:00:43]} 39. Qd2 {[%clk 0:01:11]}  Bf5 {[%clk 0:00:38]} 40. Rc1 {[%clk 0:01:06]}  Qe6 {[%clk 0:00:35]} 41. Rf1 {[%clk 0:01:00]}  Bg6 {[%clk 0:00:32]} 42. Qg5 {[%clk 0:00:54]}  Kg7 {[%clk 0:00:32]} 43. Qf4 {[%clk 0:00:46]}  Qe3+ {[%clk 0:00:32]} 44. Qxe3 {[%clk 0:00:45]}  Rxe3 {[%clk 0:00:33]} 45. Rc1 {[%clk 0:00:41]}  Be8 {[%clk 0:00:32]} 46. Rc3 {[%clk 0:00:38]}  Re2 {[%clk 0:00:31]} 47. b3 {[%clk 0:00:37]}  Rd2 {[%clk 0:00:27]} 48. Re3 {[%clk 0:00:35]}  Kf8 {[%clk 0:00:27]} 49. Re5 {[%clk 0:00:27]}  Rxd4 {[%clk 0:00:27]} 50. Rg5 {[%clk 0:00:26]}  Bd7 {[%clk 0:00:27]} 51. Re5 {[%clk 0:00:19]}  Rd3 {[%clk 0:00:26]} 52. a4 {[%clk 0:00:19]}  Rxb3 {[%clk 0:00:25]} 53. axb5 {[%clk 0:00:20]}  Rxb5 {[%clk 0:00:26]} 54. Re3 {[%clk 0:00:19]}  Rb2 {[%clk 0:00:25]} 55. Bf1 {[%clk 0:00:18]}  Bf5 {[%clk 0:00:21]} 56. Ra3 {[%clk 0:00:18]}  Rb1 {[%clk 0:00:20]} 57. Ra8+ {[%clk 0:00:17]}  Kf7 {[%clk 0:00:20]} 58. Kf2 {[%clk 0:00:18]}  Rb2+ {[%clk 0:00:19]} 59. Ke3 {[%clk 0:00:18]}  Rb3+ {[%clk 0:00:18]} 60. Kd4 {[%clk 0:00:18]}  Ke6 {[%clk 0:00:18]} 61. Re8+ {[%clk 0:00:17]}  Kd6 {[%clk 0:00:19]} 62. Rd8+ {[%clk 0:00:17]}  Bd7 {[%clk 0:00:19]} 63. Rg8 {[%clk 0:00:16]}  c5# {[%clk 0:00:20]} 0-1


[Site "https://www.chess.com"]

[Event "Titled Tuesday Blitz December 27 Early 2022"]
[White "Deac, Bogdan-Daniel"]
[Black "Alex_Sahakyan2006"]
[WhiteFideId "1226380"]
[WhiteElo "2700"]
[BlackElo "2629"]
[Result "1-0"]
[Round "02"]
[TimeControl "180+2"]
[Date "2022.12.27"]
[WhiteClock "0:00:30"]
[BlackClock "0:00:01"]

1. b3 {[%clk 0:03:00]}  e5 {[%clk 0:02:59]} 2. Bb2 {[%clk 0:03:01]}  Nc6 {[%clk 0:02:59]} 3. Nf3 {[%clk 0:03:01]}  e4 {[%clk 0:02:57]} 4. Nd4 {[%clk 0:03:01]}  Nf6 {[%clk 0:02:53]} 5. e3 {[%clk 0:02:59]}  d5 {[%clk 0:02:48]} 6. c4 {[%clk 0:02:57]}  Nxd4 {[%clk 0:02:48]} 7. Bxd4 {[%clk 0:02:57]}  c6 {[%clk 0:02:48]} 8. Nc3 {[%clk 0:02:54]}  a6 {[%clk 0:02:41]} 9. cxd5 {[%clk 0:02:52]}  cxd5 {[%clk 0:02:42]} 10. Be2 {[%clk 0:02:34]}  Bd6 {[%clk 0:02:39]} 11. f4 {[%clk 0:02:34]}  Be7 {[%clk 0:02:29]} 12. O-O {[%clk 0:02:30]}  h5 {[%clk 0:02:27]} 13. d3 {[%clk 0:02:28]}  Bf5 {[%clk 0:02:26]} 14. dxe4 {[%clk 0:02:24]}  dxe4 {[%clk 0:02:18]} 15. a4 {[%clk 0:02:23]}  Qa5 {[%clk 0:02:14]} 16. Rc1 {[%clk 0:02:16]}  Rd8 {[%clk 0:02:11]} 17. Qc2 {[%clk 0:01:57]}  Bc5 {[%clk 0:02:10]} 18. Nb5 {[%clk 0:01:49]}  Bxd4 {[%clk 0:02:09]} 19. Nxd4 {[%clk 0:01:48]}  Bg4 {[%clk 0:01:58]} 20. Bc4 {[%clk 0:01:48]}  O-O {[%clk 0:01:52]} 21. f5 {[%clk 0:01:47]}  b5 {[%clk 0:01:46]} 22. axb5 {[%clk 0:01:47]}  axb5 {[%clk 0:01:47]} 23. Nc6 {[%clk 0:01:21]}  Qb6 {[%clk 0:01:46]} 24. Bxf7+ {[%clk 0:01:13]}  Rxf7 {[%clk 0:01:25]} 25. Nxd8 {[%clk 0:01:13]}  Qxd8 {[%clk 0:01:26]} 26. h3 {[%clk 0:01:12]}  Qb6 {[%clk 0:00:38]} 27. Qf2 {[%clk 0:00:52]}  Bxh3 {[%clk 0:00:13]} 28. gxh3 {[%clk 0:00:51]}  Nd5 {[%clk 0:00:13]} 29. Rce1 {[%clk 0:00:38]}  Qf6 {[%clk 0:00:06]} 30. Qg3 {[%clk 0:00:34]}  Rf8 {[%clk 0:00:03]} 31. Rd1 {[%clk 0:00:32]}  Nb4 {[%clk 0:00:02]} 32. Rd6 {[%clk 0:00:31]}  Qb2 {[%clk 0:00:01]} 33. f6 {[%clk 0:00:30]} 1-0


[Site "https://www.chess.com"]

[Event "Titled Tuesday Blitz December 27 Early 2022"]
[White "Demin, Vladimir"]
[Black "Jobava, Baadur"]
[WhiteFideId "4167457"]
[BlackFideId "13601520"]
[WhiteElo "2430"]
[BlackElo "2578"]
[Result "0-1"]
[Round "02"]
[TimeControl "180+2"]
[Date "2022.12.27"]
[WhiteClock "0:00:33"]
[BlackClock "0:01:36"]

1. d4 {[%clk 0:03:00]}  d5 {[%clk 0:02:59]} 2. Nc3 {[%clk 0:03:00]}  c6 {[%clk 0:02:58]} 3. e4 {[%clk 0:02:58]}  dxe4 {[%clk 0:02:59]} 4. Nxe4 {[%clk 0:02:59]}  Bf5 {[%clk 0:02:59]} 5. Ng3 {[%clk 0:02:56]}  Bg6 {[%clk 0:02:58]} 6. h4 {[%clk 0:02:55]}  h6 {[%clk 0:02:59]} 7. Nf3 {[%clk 0:02:54]}  Nd7 {[%clk 0:02:59]} 8. h5 {[%clk 0:02:51]}  Bh7 {[%clk 0:02:59]} 9. Bd3 {[%clk 0:02:51]}  Bxd3 {[%clk 0:03:00]} 10. Qxd3 {[%clk 0:02:52]}  e6 {[%clk 0:03:00]} 11. Bf4 {[%clk 0:02:49]}  Ngf6 {[%clk 0:03:01]} 12. O-O-O {[%clk 0:02:47]}  Qb6 {[%clk 0:03:02]} 13. c4 {[%clk 0:02:44]}  Rd8 {[%clk 0:03:01]} 14. Qc2 {[%clk 0:02:30]}  Be7 {[%clk 0:02:56]} 15. Qb3 {[%clk 0:02:04]}  O-O {[%clk 0:02:53]} 16. Qxb6 {[%clk 0:02:02]}  axb6 {[%clk 0:02:54]} 17. a3 {[%clk 0:01:57]}  b5 {[%clk 0:02:53]} 18. cxb5 {[%clk 0:01:56]}  cxb5 {[%clk 0:02:54]} 19. Kb1 {[%clk 0:01:54]}  Nd5 {[%clk 0:02:51]} 20. Be3 {[%clk 0:01:52]}  b4 {[%clk 0:02:41]} 21. axb4 {[%clk 0:01:51]}  Bxb4 {[%clk 0:02:40]} 22. Ne4 {[%clk 0:01:50]}  f5 {[%clk 0:02:34]} 23. Nc5 {[%clk 0:01:45]}  Nxc5 {[%clk 0:02:31]} 24. dxc5 {[%clk 0:01:46]}  Nxe3 {[%clk 0:02:31]} 25. fxe3 {[%clk 0:01:46]}  Bxc5 {[%clk 0:02:32]} 26. Rxd8 {[%clk 0:01:39]}  Rxd8 {[%clk 0:02:33]} 27. Re1 {[%clk 0:01:39]}  Kf7 {[%clk 0:02:29]} 28. e4 {[%clk 0:01:40]}  Kf6 {[%clk 0:02:28]} 29. exf5 {[%clk 0:01:38]}  exf5 {[%clk 0:02:29]} 30. Kc2 {[%clk 0:01:37]}  b6 {[%clk 0:02:27]} 31. Kc3 {[%clk 0:01:35]}  f4 {[%clk 0:02:23]} 32. b4 {[%clk 0:01:33]}  Be3 {[%clk 0:02:23]} 33. Ra1 {[%clk 0:01:33]}  Rd7 {[%clk 0:02:20]} 34. Ra8 {[%clk 0:01:32]}  Kf5 {[%clk 0:02:20]} 35. Rf8+ {[%clk 0:01:28]}  Ke4 {[%clk 0:02:18]} 36. Re8+ {[%clk 0:01:26]}  Kf5 {[%clk 0:02:18]} 37. Rf8+ {[%clk 0:01:26]}  Ke6 {[%clk 0:02:18]} 38. Re8+ {[%clk 0:01:26]}  Kf7 {[%clk 0:02:17]} 39. Rc8 {[%clk 0:01:25]}  Rd5 {[%clk 0:02:16]} 40. Rc7+ {[%clk 0:01:23]}  Kg8 {[%clk 0:02:16]} 41. Rc8+ {[%clk 0:00:53]}  Kh7 {[%clk 0:02:15]} 42. Re8 {[%clk 0:00:53]}  Rxh5 {[%clk 0:02:14]} 43. Kc4 {[%clk 0:00:52]}  b5+ {[%clk 0:02:11]} 44. Kd3 {[%clk 0:00:52]}  Rd5+ {[%clk 0:01:55]} 45. Ke4 {[%clk 0:00:52]}  Rd6 {[%clk 0:01:56]} 46. Re5 {[%clk 0:00:50]}  Rg6 {[%clk 0:01:52]} 47. Rxb5 {[%clk 0:00:38]}  Rxg2 {[%clk 0:01:52]} 48. Rb8 {[%clk 0:00:36]}  Rb2 {[%clk 0:01:51]} 49. b5 {[%clk 0:00:36]}  Kg6 {[%clk 0:01:47]} 50. Ne5+ {[%clk 0:00:35]}  Kh5 {[%clk 0:01:47]} 51. Kf5 {[%clk 0:00:35]}  g5 {[%clk 0:01:43]} 52. Ng4 {[%clk 0:00:33]}  Bd4 {[%clk 0:01:36]} 0-1


[Site "https://www.chess.com"]

[Event "Titled Tuesday Blitz December 27 Early 2022"]
[White "Eggleston, Thomas A"]
[Black "Goltsev, Dmitry"]
[WhiteFideId "412139"]
[BlackFideId "24176710"]
[WhiteElo "2215"]
[BlackElo "2269"]
[Result "0-1"]
[Round "02"]
[TimeControl "180+2"]
[Date "2022.12.27"]
[WhiteClock "0:00:10"]
[BlackClock "0:01:32"]

1. e4 {[%clk 0:03:00]}  e6 {[%clk 0:03:00]} 2. d4 {[%clk 0:03:00]}  d5 {[%clk 0:03:01]} 3. Nc3 {[%clk 0:03:00]}  Nf6 {[%clk 0:03:00]} 4. e5 {[%clk 0:03:00]}  Ne4 {[%clk 0:03:01]} 5. f4 {[%clk 0:03:01]}  Qh4+ {[%clk 0:03:01]} 6. g3 {[%clk 0:02:59]}  Nxg3 {[%clk 0:03:01]} 7. Nf3 {[%clk 0:02:59]}  Qh5 {[%clk 0:03:01]} 8. hxg3 {[%clk 0:02:54]}  Qxh1 {[%clk 0:03:01]} 9. Be3 {[%clk 0:02:51]}  a6 {[%clk 0:03:00]} 10. a3 {[%clk 0:02:49]}  c5 {[%clk 0:03:00]} 11. dxc5 {[%clk 0:02:45]}  Nc6 {[%clk 0:03:00]} 12. Qe2 {[%clk 0:02:44]}  Qh5 {[%clk 0:02:56]} 13. O-O-O {[%clk 0:02:41]}  Bd7 {[%clk 0:02:54]} 14. Bg2 {[%clk 0:02:12]}  Rc8 {[%clk 0:02:50]} 15. Na4 {[%clk 0:02:11]}  Nxe5 {[%clk 0:02:41]} 16. Nb6 {[%clk 0:02:09]}  Nc4 {[%clk 0:02:36]} 17. Nxc8 {[%clk 0:02:03]}  Bxc8 {[%clk 0:02:37]} 18. Bd4 {[%clk 0:01:44]}  Be7 {[%clk 0:02:35]} 19. Rh1 {[%clk 0:01:20]}  Qg6 {[%clk 0:02:31]} 20. Bf2 {[%clk 0:01:12]}  Bf6 {[%clk 0:02:27]} 21. c3 {[%clk 0:01:08]}  Bd7 {[%clk 0:02:25]} 22. Nh4 {[%clk 0:01:06]}  Bxh4 {[%clk 0:02:24]} 23. Rxh4 {[%clk 0:01:05]}  Bb5 {[%clk 0:02:24]} 24. a4 {[%clk 0:00:50]}  Bxa4 {[%clk 0:02:23]} 25. Bxd5 {[%clk 0:00:46]}  Na5 {[%clk 0:02:21]} 26. f5 {[%clk 0:00:35]}  Qxf5 {[%clk 0:02:13]} 27. Rxa4 {[%clk 0:00:34]}  Qxd5 {[%clk 0:02:11]} 28. Rxa5 {[%clk 0:00:35]}  O-O {[%clk 0:02:11]} 29. Ra4 {[%clk 0:00:33]}  Rc8 {[%clk 0:02:07]} 30. Rd4 {[%clk 0:00:32]}  Qf5 {[%clk 0:02:04]} 31. Qd3 {[%clk 0:00:29]}  Qg5+ {[%clk 0:02:00]} 32. Qd2 {[%clk 0:00:27]}  Qf6 {[%clk 0:01:59]} 33. Rd7 {[%clk 0:00:25]}  Rb8 {[%clk 0:01:54]} 34. Rc7 {[%clk 0:00:21]}  h6 {[%clk 0:01:51]} 35. Bd4 {[%clk 0:00:17]}  Qf1+ {[%clk 0:01:50]} 36. Kc2 {[%clk 0:00:17]}  Qf5+ {[%clk 0:01:51]} 37. Kc1 {[%clk 0:00:16]}  Qf1+ {[%clk 0:01:50]} 38. Kc2 {[%clk 0:00:16]}  a5 {[%clk 0:01:48]} 39. Rd7 {[%clk 0:00:14]}  a4 {[%clk 0:01:45]} 40. Be3 {[%clk 0:00:12]}  Qf3 {[%clk 0:01:37]} 41. Rd8+ {[%clk 0:00:12]}  Rxd8 {[%clk 0:01:37]} 42. Qxd8+ {[%clk 0:00:12]}  Kh7 {[%clk 0:01:38]} 43. Qd3+ {[%clk 0:00:12]}  f5 {[%clk 0:01:39]} 44. Bd2 {[%clk 0:00:11]}  Qg2 {[%clk 0:01:35]} 45. Qe3 {[%clk 0:00:11]}  Qd5 {[%clk 0:01:34]} 46. Qd3 {[%clk 0:00:11]}  Qb3+ {[%clk 0:01:34]} 47. Kc1 {[%clk 0:00:11]}  a3 {[%clk 0:01:32]} 48. bxa3 {[%clk 0:00:11]}  Qxa3+ {[%clk 0:01:33]} 49. Kd1 {[%clk 0:00:11]}  Qxc5 {[%clk 0:01:34]} 50. Be3 {[%clk 0:00:10]}  Qc7 {[%clk 0:01:31]} 51. Bd4 {[%clk 0:00:10]}  Qd7 {[%clk 0:01:26]} 52. Qe3 {[%clk 0:00:10]}  Qd5 {[%clk 0:01:25]} 53. Qe5 {[%clk 0:00:09]}  Qxe5 {[%clk 0:01:24]} 54. Bxe5 {[%clk 0:00:10]}  g5 {[%clk 0:01:25]} 55. Ke2 {[%clk 0:00:10]}  Kg6 {[%clk 0:01:25]} 56. Kd3 {[%clk 0:00:10]}  Kh5 {[%clk 0:01:25]} 57. Kc4 {[%clk 0:00:11]}  Kg4 {[%clk 0:01:25]} 58. Kb5 {[%clk 0:00:11]}  f4 {[%clk 0:01:25]} 59. gxf4 {[%clk 0:00:11]}  gxf4 {[%clk 0:01:26]} 60. Kb6 {[%clk 0:00:11]}  h5 {[%clk 0:01:27]} 61. Bd4 {[%clk 0:00:10]}  h4 {[%clk 0:01:26]} 62. Kxb7 {[%clk 0:00:11]}  h3 {[%clk 0:01:26]} 63. Bg1 {[%clk 0:00:11]}  f3 {[%clk 0:01:26]} 64. c4 {[%clk 0:00:11]}  f2 {[%clk 0:01:26]} 65. Bxf2 {[%clk 0:00:11]}  h2 {[%clk 0:01:27]} 66. c5 {[%clk 0:00:11]}  h1=Q+ {[%clk 0:01:27]} 67. c6 {[%clk 0:00:12]}  Qd5 {[%clk 0:01:28]} 68. Kb6 {[%clk 0:00:09]}  Qb3+ {[%clk 0:01:27]} 69. Kc7 {[%clk 0:00:10]}  e5 {[%clk 0:01:28]} 70. Kd7 {[%clk 0:00:10]}  Qd5+ {[%clk 0:01:27]} 71. Kc7 {[%clk 0:00:09]}  Qf7+ {[%clk 0:01:27]} 72. Kb6 {[%clk 0:00:09]}  Qxf2+ {[%clk 0:01:28]} 73. Kb7 {[%clk 0:00:09]}  Qc2 {[%clk 0:01:29]} 74. c7 {[%clk 0:00:09]}  e4 {[%clk 0:01:30]} 75. c8=Q+ {[%clk 0:00:09]}  Qxc8+ {[%clk 0:01:31]} 76. Kxc8 {[%clk 0:00:10]}  e3 {[%clk 0:01:32]} 0-1


[Site "https://www.chess.com"]

[Event "Titled Tuesday Blitz December 27 Early 2022"]
[White "Estrada Nieto, Julian"]
[Black "Sankalan Shah"]
[WhiteFideId "5101018"]
[BlackFideId "25600362"]
[WhiteElo "2215"]
[BlackElo "2179"]
[Result "0-1"]
[Round "02"]
[TimeControl "180+2"]
[Date "2022.12.27"]
[WhiteClock "0:00:20"]
[BlackClock "0:00:16"]

1. e4 {[%clk 0:03:00]}  c5 {[%clk 0:02:59]} 2. Nf3 {[%clk 0:03:00]}  d6 {[%clk 0:02:59]} 3. d4 {[%clk 0:03:00]}  cxd4 {[%clk 0:03:00]} 4. Qxd4 {[%clk 0:03:00]}  Nc6 {[%clk 0:02:57]} 5. Bb5 {[%clk 0:03:00]}  Bd7 {[%clk 0:02:57]} 6. Bxc6 {[%clk 0:02:59]}  Bxc6 {[%clk 0:02:58]} 7. Nc3 {[%clk 0:03:00]}  Nf6 {[%clk 0:02:58]} 8. Bg5 {[%clk 0:03:00]}  e6 {[%clk 0:02:53]} 9. O-O-O {[%clk 0:03:00]}  Be7 {[%clk 0:02:52]} 10. Rhe1 {[%clk 0:02:59]}  Qc7 {[%clk 0:02:44]} 11. Kb1 {[%clk 0:02:58]}  b5 {[%clk 0:02:28]} 12. e5 {[%clk 0:02:26]}  dxe5 {[%clk 0:01:56]} 13. Nxe5 {[%clk 0:02:25]}  O-O {[%clk 0:01:51]} 14. Nxc6 {[%clk 0:02:22]}  Qxc6 {[%clk 0:01:52]} 15. Ne4 {[%clk 0:02:14]}  Rfd8 {[%clk 0:01:19]} 16. Nxf6+ {[%clk 0:02:11]}  Bxf6 {[%clk 0:01:11]} 17. Qe3 {[%clk 0:02:02]}  Bxg5 {[%clk 0:01:01]} 18. Qxg5 {[%clk 0:02:01]}  f6 {[%clk 0:00:57]} 19. Qe3 {[%clk 0:01:59]}  e5 {[%clk 0:00:56]} 20. f3 {[%clk 0:01:58]}  a5 {[%clk 0:00:49]} 21. a3 {[%clk 0:01:48]}  Rac8 {[%clk 0:00:48]} 22. Qe4 {[%clk 0:01:43]}  Rxd1+ {[%clk 0:00:44]} 23. Rxd1 {[%clk 0:01:43]}  Qxe4 {[%clk 0:00:45]} 24. fxe4 {[%clk 0:01:43]}  Rc4 {[%clk 0:00:38]} 25. Re1 {[%clk 0:01:39]}  Kf7 {[%clk 0:00:36]} 26. c3 {[%clk 0:01:33]}  Ke6 {[%clk 0:00:34]} 27. Kc2 {[%clk 0:01:33]}  a4 {[%clk 0:00:34]} 28. Kd3 {[%clk 0:01:31]}  g6 {[%clk 0:00:34]} 29. g4 {[%clk 0:01:30]}  Rc8 {[%clk 0:00:24]} 30. Rf1 {[%clk 0:01:26]}  Rd8+ {[%clk 0:00:21]} 31. Ke3 {[%clk 0:01:26]}  Rc8 {[%clk 0:00:20]} 32. Rf3 {[%clk 0:01:25]}  Rc4 {[%clk 0:00:20]} 33. Rh3 {[%clk 0:01:25]}  Rc7 {[%clk 0:00:19]} 34. Rf3 {[%clk 0:01:19]}  Rc4 {[%clk 0:00:16]} 35. h4 {[%clk 0:01:18]}  Rc7 {[%clk 0:00:14]} 36. Rh3 {[%clk 0:01:11]}  Rd7 {[%clk 0:00:14]} 37. h5 {[%clk 0:01:11]}  Rd1 {[%clk 0:00:14]} 38. hxg6 {[%clk 0:01:10]}  hxg6 {[%clk 0:00:14]} 39. Rh6 {[%clk 0:01:10]}  Kf7 {[%clk 0:00:14]} 40. Rh7+ {[%clk 0:01:10]}  Ke6 {[%clk 0:00:14]} 41. Rb7 {[%clk 0:01:10]}  Re1+ {[%clk 0:00:15]} 42. Kd3 {[%clk 0:01:09]}  Rg1 {[%clk 0:00:15]} 43. Rb6+ {[%clk 0:01:08]}  Kf7 {[%clk 0:00:15]} 44. Rxb5 {[%clk 0:01:09]}  Rxg4 {[%clk 0:00:15]} 45. Rb4 {[%clk 0:01:06]}  Rg2 {[%clk 0:00:15]} 46. c4 {[%clk 0:01:02]}  g5 {[%clk 0:00:15]} 47. c5 {[%clk 0:01:01]}  Ke7 {[%clk 0:00:16]} 48. Rb7+ {[%clk 0:01:00]}  Kd8 {[%clk 0:00:15]} 49. c6 {[%clk 0:00:58]}  Rg1 {[%clk 0:00:15]} 50. Kc4 {[%clk 0:00:51]}  g4 {[%clk 0:00:13]} 51. Kd5 {[%clk 0:00:48]}  g3 {[%clk 0:00:11]} 52. Kd6 {[%clk 0:00:40]}  Rd1+ {[%clk 0:00:11]} 53. Ke6 {[%clk 0:00:40]}  g2 {[%clk 0:00:12]} 54. Rg7 {[%clk 0:00:27]}  g1=Q {[%clk 0:00:11]} 55. c7+ {[%clk 0:00:26]}  Kc8 {[%clk 0:00:12]} 56. Rxg1 {[%clk 0:00:24]}  Rxg1 {[%clk 0:00:12]} 57. Kxf6 {[%clk 0:00:25]}  Rc1 {[%clk 0:00:13]} 58. Kxe5 {[%clk 0:00:25]}  Kxc7 {[%clk 0:00:13]} 59. Kd4 {[%clk 0:00:25]}  Rb1 {[%clk 0:00:13]} 60. Kc3 {[%clk 0:00:25]}  Re1 {[%clk 0:00:14]} 61. Kd3 {[%clk 0:00:23]}  Kd6 {[%clk 0:00:13]} 62. Kd4 {[%clk 0:00:21]}  Rd1+ {[%clk 0:00:13]} 63. Kc4 {[%clk 0:00:20]}  Ke5 {[%clk 0:00:13]} 64. Kb4 {[%clk 0:00:20]}  Rd4+ {[%clk 0:00:13]} 65. Kc3 {[%clk 0:00:19]}  Kxe4 {[%clk 0:00:14]} 66. b4 {[%clk 0:00:18]}  axb3 {[%clk 0:00:14]} 67. Kxb3 {[%clk 0:00:18]}  Kd5 {[%clk 0:00:14]} 68. a4 {[%clk 0:00:17]}  Kc5 {[%clk 0:00:14]} 69. Kc3 {[%clk 0:00:17]}  Rxa4 {[%clk 0:00:14]} 70. Kd3 {[%clk 0:00:18]}  Rc4 {[%clk 0:00:14]} 71. Ke3 {[%clk 0:00:19]}  Kd5 {[%clk 0:00:15]} 72. Kd3 {[%clk 0:00:20]}  Rc5 {[%clk 0:00:13]} 73. Ke3 {[%clk 0:00:20]}  Rc3+ {[%clk 0:00:13]} 74. Kd2 {[%clk 0:00:20]}  Kd4 {[%clk 0:00:13]} 75. Ke2 {[%clk 0:00:20]}  Rd3 {[%clk 0:00:13]} 76. Kf2 {[%clk 0:00:20]}  Re3 {[%clk 0:00:14]} 77. Kg2 {[%clk 0:00:19]}  Ke4 {[%clk 0:00:14]} 78. Kf2 {[%clk 0:00:20]}  Kf4 {[%clk 0:00:15]} 79. Kg2 {[%clk 0:00:20]}  Rf3 {[%clk 0:00:15]} 80. Kh2 {[%clk 0:00:20]}  Kg4 {[%clk 0:00:15]} 81. Kg2 {[%clk 0:00:20]}  Kf4 {[%clk 0:00:15]} 82. Kh2 {[%clk 0:00:20]}  Rg3 {[%clk 0:00:15]} 83. Kh1 {[%clk 0:00:20]}  Kf3 {[%clk 0:00:15]} 84. Kh2 {[%clk 0:00:20]}  Kf2 {[%clk 0:00:16]} 0-1


[Site "https://www.chess.com"]

[Event "Titled Tuesday Blitz December 27 Early 2022"]
[White "Fabris, Alberto"]
[Black "Bettalli, Francesco"]
[WhiteFideId "801348"]
[BlackFideId "2816453"]
[WhiteElo "2230"]
[BlackElo "2252"]
[Result "1-0"]
[Round "02"]
[TimeControl "180+2"]
[Date "2022.12.27"]
[WhiteClock "0:00:26"]
[BlackClock "0:00:47"]

1. d4 {[%clk 0:03:00]}  g6 {[%clk 0:02:42]} 2. e4 {[%clk 0:02:59]}  Bg7 {[%clk 0:02:36]} 3. Nf3 {[%clk 0:02:58]}  c6 {[%clk 0:02:36]} 4. h3 {[%clk 0:02:52]}  d6 {[%clk 0:02:36]} 5. c4 {[%clk 0:02:51]}  Nf6 {[%clk 0:02:36]} 6. Nc3 {[%clk 0:02:50]}  O-O {[%clk 0:02:37]} 7. Be2 {[%clk 0:02:51]}  Nbd7 {[%clk 0:02:37]} 8. Be3 {[%clk 0:02:49]}  e5 {[%clk 0:02:38]} 9. O-O {[%clk 0:02:47]}  Qc7 {[%clk 0:02:37]} 10. Qc2 {[%clk 0:02:44]}  b6 {[%clk 0:02:36]} 11. Rfd1 {[%clk 0:02:42]}  Bb7 {[%clk 0:02:36]} 12. b4 {[%clk 0:02:40]}  Rad8 {[%clk 0:02:34]} 13. a4 {[%clk 0:02:38]}  a5 {[%clk 0:02:29]} 14. bxa5 {[%clk 0:02:32]}  bxa5 {[%clk 0:02:30]} 15. Rab1 {[%clk 0:02:31]}  Rb8 {[%clk 0:02:24]} 16. d5 {[%clk 0:02:28]}  Nc5 {[%clk 0:02:21]} 17. Bxc5 {[%clk 0:02:25]}  dxc5 {[%clk 0:02:21]} 18. d6 {[%clk 0:02:23]}  Qd8 {[%clk 0:02:16]} 19. Nxe5 {[%clk 0:02:22]}  Re8 {[%clk 0:02:13]} 20. Ng4 {[%clk 0:02:19]}  Nh5 {[%clk 0:02:04]} 21. Bf3 {[%clk 0:02:09]}  Nf4 {[%clk 0:02:03]} 22. Ne2 {[%clk 0:01:56]}  Ne6 {[%clk 0:01:59]} 23. g3 {[%clk 0:01:47]}  Nd4 {[%clk 0:01:59]} 24. Nxd4 {[%clk 0:01:47]}  Bxd4 {[%clk 0:02:00]} 25. e5 {[%clk 0:01:43]}  Kg7 {[%clk 0:01:53]} 26. Qe4 {[%clk 0:01:35]}  h5 {[%clk 0:01:51]} 27. Rxd4 {[%clk 0:01:25]}  cxd4 {[%clk 0:01:47]} 28. Nf6 {[%clk 0:01:22]}  Re6 {[%clk 0:01:36]} 29. Qxd4 {[%clk 0:01:18]}  c5 {[%clk 0:01:31]} 30. Qf4 {[%clk 0:01:09]}  Bxf3 {[%clk 0:01:29]} 31. Rxb8 {[%clk 0:01:08]}  Qxb8 {[%clk 0:01:30]} 32. Qxf3 {[%clk 0:01:04]}  Rxe5 {[%clk 0:01:28]} 33. d7 {[%clk 0:01:01]}  Qd8 {[%clk 0:01:03]} 34. Nd5 {[%clk 0:00:36]}  Re1+ {[%clk 0:00:52]} 35. Kg2 {[%clk 0:00:35]}  Qxd7 {[%clk 0:00:53]} 36. Qc3+ {[%clk 0:00:28]}  Re5 {[%clk 0:00:48]} 37. Qxe5+ {[%clk 0:00:27]}  Kh6 {[%clk 0:00:49]} 38. Qf4+ {[%clk 0:00:27]}  Kg7 {[%clk 0:00:49]} 39. Qf6+ {[%clk 0:00:27]}  Kh6 {[%clk 0:00:50]} 40. h4 {[%clk 0:00:27]}  Qxa4 {[%clk 0:00:47]} 41. Qh8# {[%clk 0:00:26]} 1-0


[Site "https://www.chess.com"]